fUST/lending_fUST_20250603
["ID","MTS","AMOUNT","RATE_DAILY","PERIOD"]
[363857735,1748903434082,-507.44936912,0.00016438,2]
[363857736,1748903434093,-430.66831409,0.00016438,2]
[363857737,1748903434103,-300.66701183,0.00016438,2]
[363857738,1748903434113,-430.54603059,0.00016438,2]
[363857739,1748903434123,-401.0998147,0.00016438,2]
[363857740,1748903434134,-430.55120305,0.00016438,2]
[363857741,1748903434145,-430.0,0.00016438,2]
[363857742,1748903434155,-430.84832186,0.00016438,2]
[363857743,1748903434165,-347.02631203,0.00016438,2]
[363857744,1748903434178,-430.0,0.00016438,2]
[363857745,1748903434187,-430.0,0.00016438,2]
[363857746,1748903434199,-431.18459552,0.00016438,2]
[363857747,1748903434209,-430.0,0.00016438,2]
[363857748,1748903434221,-430.0,0.00016438,2]
[363857749,1748903434230,-430.0,0.00016438,2]
[363857750,1748903434240,-440.0,0.00016438,2]
[363857751,1748903434251,-430.0,0.00016438,2]
[363857752,1748903434262,-450.0,0.00016438,2]
[363857753,1748903434271,-430.0,0.00016438,2]
[363857754,1748903434281,-440.0,0.00016438,2]
[363857755,1748903434291,-440.0,0.00016438,2]
[363857756,1748903434301,-431.54164494,0.00016438,2]
[363857757,1748903434311,-430.82970958,0.00016438,2]
[363857758,1748903434321,-440.0,0.00016438,2]
[363857759,1748903434331,-376.37734851,0.00016438,2]
[363857760,1748903434340,-524.34667584,0.00016438,2]
[363857761,1748903434351,-430.71108495,0.00016438,2]
[363857762,1748903434360,-440.0,0.00016438,2]
[363857763,1748903434370,-400.0,0.00016438,2]
[363857764,1748903434380,-450.0,0.00016438,2]
[363857765,1748903434391,-431.96434509,0.00016438,2]
[363857766,1748903434401,-440.0,0.00016438,2]
[363857767,1748903434411,-430.47614041,0.00016438,2]
[363857768,1748903434421,-440.0,0.00016438,2]
[363857769,1748903434430,-440.0,0.00016438,2]
[363857770,1748903434440,-403.02955024,0.00016438,2]
[363857771,1748903434450,-430.0,0.00016438,2]
[363857772,1748903434461,-250.06070505,0.00016438,2]
[363857773,1748903434471,-440.0,0.00016438,2]
[363857774,1748903434481,-402.05547514,0.00016438,2]
[363857775,1748903434491,-444.74290988,0.00016438,2]
[363857776,1748903434501,-440.0,0.00016438,2]
[363857777,1748903434512,-430.0,0.00016438,2]
[363857778,1748903434522,-430.0,0.00016438,2]
[363857779,1748903434533,-440.0,0.00016438,2]
[363857780,1748903434542,-431.26906748,0.00016438,2]
[363857781,1748903434552,-440.0,0.00016438,2]
[363857782,1748903434562,-500.0,0.00016438,2]
[363857783,1748903434572,-430.0,0.00016438,2]
[363857784,1748903434582,-440.0,0.00016438,2]
[363857785,1748903434592,-458.18,0.00016438,2]
[363857786,1748903434602,-572.28604369,0.00016438,2]
[363857787,1748903434612,-430.0,0.00016438,2]
[363857788,1748903434621,-741.31,0.00016438,2]
[363857789,1748903434632,-440.0,0.00016438,2]
[363857790,1748903434642,-440.0,0.00016438,2]
[363857791,1748903434651,-431.04214636,0.00016438,2]
[363857792,1748903434661,-431.54354014,0.00016438,2]
[363857793,1748903434671,-432.81462948,0.00016438,2]
[363857794,1748903434681,-183.0428321,0.00016438,2]
[363857795,1748903436297,-342.10279694,0.0001579,2]
[363857817,1748903438976,-4657.89720306,0.0001579,2]
[363857819,1748903438987,-301.5671679,0.00016438,2]
[363857821,1748903438997,-430.76774755,0.00016438,2]
[363857823,1748903439007,-432.12813567,0.00016438,2]
[363857825,1748903439016,-440.0,0.00016438,2]
[363857827,1748903439026,-403.91299845,0.00016438,2]
[363857829,1748903439035,-440.0,0.00016438,2]
[363857831,1748903439045,-430.7695933,0.00016438,2]
[363857833,1748903439054,-430.0,0.00016438,2]
[363857835,1748903439064,-411.19967233,0.00016438,2]
[363857837,1748903439074,-440.0,0.00016438,2]
[363857839,1748903439084,-430.0,0.00016438,2]
[363857841,1748903439094,-440.0,0.00016438,2]
[363857843,1748903439103,-430.0,0.00016438,2]
[363857846,1748903439113,-440.0,0.00016438,2]
[363857848,1748903439123,-440.0,0.00016438,2]
[363857850,1748903439133,-430.59389948,0.00016438,2]
[363857852,1748903439143,-440.0,0.00016438,2]
[363857854,1748903439154,-402.2231976,0.00016438,2]
[363857856,1748903439164,-440.0,0.00016438,2]
[363857858,1748903439173,-430.0,0.00016438,2]
[363857860,1748903439185,-430.0,0.00016438,2]
[363857862,1748903439195,-430.0,0.00016438,2]
[363857864,1748903439205,-400.0,0.00016438,2]
[363857866,1748903439215,-430.0,0.00016438,2]
[363857868,1748903439227,-430.0,0.00016438,2]
[363857870,1748903439237,-440.0,0.00016438,2]
[363857872,1748903439247,-430.79264539,0.00016438,2]
[363857874,1748903439261,-430.0,0.00016438,2]
[363857876,1748903439271,-430.0,0.00016438,2]
[363857878,1748903439282,-440.0,0.00016438,2]
[363857880,1748903439292,-406.35753184,0.00016438,2]
[363857882,1748903439301,-430.0,0.00016438,2]
[363857884,1748903439312,-440.0,0.00016438,2]
[363857886,1748903439321,-344.90065667,0.00016438,2]
[363857888,1748903439331,-430.0,0.00016438,2]
[363857890,1748903439341,-432.94340623,0.00016438,2]
[363857892,1748903439350,-434.14660711,0.00016438,2]
[363857894,1748903439360,-440.0,0.00016438,2]
[363857896,1748903439370,-195.71226463,0.00016438,2]
[363857898,1748903439381,-430.0,0.00016438,2]
[363857900,1748903439390,-450.0,0.00016438,2]
[363857902,1748903439400,-430.0,0.00016438,2]
[363857904,1748903439410,-430.0,0.00016438,2]
[363857905,1748903439420,-430.41777428,0.00016438,2]
[363857906,1748903439430,-430.0,0.00016438,2]
[363857907,1748903439439,-440.0,0.00016438,2]
[363857908,1748903439449,-434.0223265,0.00016438,2]
[363857909,1748903439459,-430.0,0.00016438,2]
[363857910,1748903439469,-430.0,0.00016438,2]
[363857911,1748903439479,-433.20175949,0.00016438,2]
[363857912,1748903439489,-430.0,0.00016438,2]
[363857913,1748903439498,-431.16523627,0.00016438,2]
[363857915,1748903439508,-431.98173589,0.00016438,2]
[363857917,1748903439518,-440.0,0.00016438,2]
[363857919,1748903439528,-440.0,0.00016438,2]
[363857921,1748903439537,-430.0,0.00016438,2]
[363857923,1748903439547,-430.0,0.00016438,2]
[363857925,1748903439557,-239.22892014,0.00016438,2]
[363857927,1748903439572,-430.0,0.00016438,2]
[363857929,1748903439581,-440.0,0.00016438,2]
[363857935,1748903439744,-430.0,0.00016438,2]
[363857936,1748903439754,-440.0,0.00016438,2]
[363857937,1748903439765,-430.0,0.00016438,2]
[363857938,1748903439775,-433.04794232,0.00016438,2]
[363857939,1748903439784,-315.61744052,0.00016438,2]
[363857940,1748903439794,-440.0,0.00016438,2]
[363857941,1748903439804,-440.0,0.00016438,2]
[363857942,1748903439817,-440.0,0.00016438,2]
[363857943,1748903439826,-440.0,0.00016438,2]
[363857944,1748903439836,-430.0,0.00016438,2]
[363857945,1748903439846,-440.0,0.00016438,2]
[363857946,1748903439856,-487.11767686,0.00016438,2]
[363857947,1748903439867,-440.0,0.00016438,2]
[363857948,1748903439876,-440.0,0.00016438,2]
[363857949,1748903439886,-440.0,0.00016438,2]
[363857950,1748903439895,-430.0,0.00016438,2]
[363857951,1748903439905,-430.0,0.00016438,2]
[363857952,1748903439914,-440.0,0.00016438,2]
[363857953,1748903439924,-440.0,0.00016438,2]
[363857954,1748903439934,-397.82663718,0.00016438,2]
[363857955,1748903439944,-440.0,0.00016438,2]
[363857956,1748903439955,-440.0,0.00016438,2]
[363857957,1748903439964,-450.0,0.00016438,2]
[363857958,1748903439974,-440.0,0.00016438,2]
[363857959,1748903439984,-440.0,0.00016438,2]
[363857960,1748903439993,-400.0,0.00016438,2]
[363857961,1748903440003,-260.18082983,0.00016438,2]
[363857963,1748903440014,-430.0,0.00016438,2]
[363857965,1748903440023,-440.0,0.00016438,2]
[363857967,1748903440034,-500.0,0.00016496,2]
[363857969,1748903440044,-497.55,0.00016497,2]
[363857971,1748903440057,-264.41789293,0.00016497,2]
[363857973,1748903440069,-188.66236079,0.00016497,2]
[363857975,1748903440079,-301.02551318,0.00016497,2]
[363857977,1748903440089,-440.0,0.00016497,2]
[363857979,1748903440099,-430.0,0.00016497,2]
[363857981,1748903440109,-430.0,0.00016497,2]
[363857983,1748903440118,-470.0,0.00016497,2]
[363857985,1748903440127,-430.0,0.00016497,2]
[363857987,1748903440137,-430.0,0.00016497,2]
[363857989,1748903440146,-261.20234888,0.00016497,2]
[363857991,1748903440156,-430.0,0.00016497,2]
[363857992,1748903440166,-440.0,0.00016497,2]
[363857993,1748903440177,-500.0,0.00016711,2]
[363857994,1748903440190,-430.0,0.00016712,2]
[363857995,1748903440200,-420.0,0.00016712,2]
[363857996,1748903440209,-430.0,0.00016712,2]
[363857997,1748903440219,-420.0,0.00016712,2]
[363857998,1748903440228,-420.0,0.00016712,2]
[363857999,1748903440238,-440.0,0.00016712,2]
[363858001,1748903440248,-430.0,0.00016712,2]
[363858002,1748903440260,-420.0,0.00016712,2]
[363858003,1748903440269,-430.0,0.00016712,2]
[363858004,1748903440278,-440.0,0.00016712,2]
[363858005,1748903440289,-440.0,0.00016712,2]
[363858006,1748903440299,-420.0,0.00016712,2]
[363858007,1748903440309,-450.57,0.00016712,2]
[363858008,1748903440320,-420.0,0.00016712,2]
[363858009,1748903440330,-171.50939695,0.00016712,2]
[363858010,1748903440341,-384.27329561,0.00016712,2]
[363858011,1748903440351,-190.53737934,0.00016712,2]
[363858012,1748903440360,-440.0,0.00016712,2]
[363858013,1748903440370,-420.0,0.00016712,2]
[363858014,1748903440380,-470.0,0.00016712,2]
[363858015,1748903440390,-420.0,0.00016712,2]
[363858016,1748903440399,-420.0,0.00016712,2]
[363858017,1748903440409,-430.0,0.00016712,2]
[363858018,1748903440418,-420.0,0.00016712,2]
[363858019,1748903440427,-422.81831017,0.00016712,2]
[363858020,1748903440437,-430.0,0.00016712,2]
[363858021,1748903440447,-420.0,0.00016712,2]
[363858022,1748903440457,-420.0,0.00016712,2]
[363858023,1748903440467,-460.0,0.00016712,2]
[363858024,1748903440476,-420.0,0.00016712,2]
[363858025,1748903440486,-421.2,0.00016712,2]
[363858026,1748903440495,-420.0,0.00016712,2]
[363858027,1748903440505,-361.8041462,0.00016712,2]
[363858028,1748903440514,-421.59248011,0.00016712,2]
[363858029,1748903440524,-340.0,0.00016712,2]
[363858030,1748903440534,-420.0,0.00016712,2]
[363858031,1748903440544,-220.32444105,0.00016712,2]
[363858032,1748903440553,-440.0,0.00016712,2]
[363858033,1748903440563,-560.0,0.00016712,2]
[363858034,1748903440573,-440.0,0.00016712,2]
[363858035,1748903440583,-440.0,0.00016712,2]
[363858036,1748903440592,-440.0,0.00016712,2]
[363858037,1748903440602,-421.31898292,0.00016712,2]
[363858038,1748903440612,-420.0,0.00016712,2]
[363858039,1748903440622,-432.85663331,0.00016712,2]
[363858040,1748903440631,-458.18,0.00016712,2]
[363858041,1748903440641,-741.31,0.00016712,2]
[363858042,1748903440651,-399.52269947,0.00016712,2]
[363858043,1748903440660,-405.76938968,0.00016712,2]
[363858044,1748903440670,-484.61,0.00016712,2]
[363858045,1748903440680,-423.40130627,0.00016712,2]
[363858046,1748903440692,-396.07061691,0.00016712,2]
[363858047,1748903440701,-431.94957379,0.00016712,2]
[363858048,1748903440711,-433.29933048,0.00016712,2]
[363858049,1748903440721,-420.0,0.00016712,2]
[363858050,1748903440731,-440.0,0.00016712,2]
[363858051,1748903440740,-440.0,0.00016712,2]
[363858052,1748903440750,-420.0,0.00016712,2]
[363858053,1748903440760,-420.0,0.00016712,2]
[363858054,1748903440770,-483.29,0.00016712,2]
[363858055,1748903440779,-430.0,0.00016712,2]
[363858056,1748903440789,-430.0,0.00016712,2]
[363858057,1748903440798,-440.0,0.00016712,2]
[363858058,1748903440807,-440.0,0.00016712,2]
[363858059,1748903440820,-430.0,0.00016712,2]
[363858060,1748903440830,-480.0,0.00016712,2]
[363858061,1748903440840,-440.0,0.00016712,2]
[363858062,1748903440849,-440.0,0.00016712,2]
[363858063,1748903440859,-440.0,0.00016712,2]
[363858064,1748903440868,-440.0,0.00016712,2]
[363858065,1748903440878,-289.59085106,0.00016712,2]
[363858066,1748903440887,-440.0,0.00016712,2]
[363858067,1748903440898,-440.0,0.00016712,2]
[363858068,1748903440908,-430.0,0.00016712,2]
[363858069,1748903440918,-440.0,0.00016712,2]
[363858070,1748903440927,-440.0,0.00016712,2]
[363858071,1748903440937,-430.0,0.00016712,2]
[363858072,1748903440946,-420.0,0.00016771,2]
[363858073,1748903440957,-420.0,0.00016771,2]
[363858074,1748903440968,-500.0,0.00016985,2]
[363858075,1748903440979,-314.96217928,0.00016986,2]
[363858076,1748903440988,-440.0,0.00016986,2]
[363858077,1748903440998,-321.09,0.00016986,2]
[363858078,1748903441007,-440.0,0.00016986,2]
[363858079,1748903441017,-440.0,0.00016986,2]
[363858080,1748903441026,-440.0,0.00016986,2]
[363858081,1748903441036,-440.0,0.00016986,2]
[363858082,1748903441046,-440.0,0.00016986,2]
[363858083,1748903441055,-458.18,0.00016986,2]
[363858084,1748903441066,-741.31,0.00016986,2]
[363858085,1748903441076,-484.61,0.00016986,2]
[363858086,1748903441086,-440.0,0.00016986,2]
[363858087,1748903441096,-440.0,0.00016986,2]
[363858088,1748903441105,-440.0,0.00016986,2]
[363858089,1748903441114,-440.0,0.00016986,2]
[363858090,1748903441124,-440.0,0.00016986,2]
[363858091,1748903441134,-191.35,0.00016986,2]
[363858092,1748903441143,-440.0,0.00016986,2]
[363858093,1748903441153,-420.0,0.00016986,2]
[363858094,1748903441162,-440.0,0.00016986,2]
[363858095,1748903441172,-440.0,0.00016986,2]
[363858096,1748903441186,-440.0,0.00016986,2]
[363858097,1748903441195,-440.0,0.00016986,2]
[363858098,1748903441204,-500.0,0.00017124,2]
[363858099,1748903441214,-442.00275862,0.000172,2]
[363858100,1748903441226,-442.00275833,0.000172,2]
[363858101,1748903441235,-440.0,0.0001726,2]
[363858102,1748903441245,-237.04016363,0.0001726,2]
[363858103,1748903441256,-440.0,0.0001726,2]
[363858104,1748903441266,-440.0,0.0001726,2]
[363858105,1748903441276,-440.0,0.0001726,2]
[363858106,1748903441286,-373.34,0.0001726,2]
[363858107,1748903441296,-458.18,0.0001726,2]
[363858108,1748903441306,-741.31,0.0001726,2]
[363858109,1748903441317,-484.61,0.0001726,2]
[363858110,1748903441327,-440.0,0.0001726,2]
[363858111,1748903441336,-440.0,0.0001726,2]
[363858112,1748903441346,-440.0,0.0001726,2]
[363858113,1748903441356,-440.0,0.0001726,2]
[363858114,1748903441365,-440.0,0.0001726,2]
[363858115,1748903441375,-440.0,0.0001726,2]
[363858116,1748903441386,-176.04,0.0001726,2]
[363858117,1748903441396,-440.0,0.0001726,2]
[363858118,1748903441406,-440.0,0.0001726,2]
[363858119,1748903441415,-440.0,0.0001726,2]
[363858120,1748903441425,-442.00275833,0.00017383,2]
[363858121,1748903441435,-447.83449131,0.0001741,2]
[363858122,1748903441445,-420.0,0.00017438,2]
[363858123,1748903441455,-420.0,0.00017438,2]
[363858124,1748903441464,-465.0,0.00017526,2]
[363858125,1748903441475,-440.0,0.00017534,2]
[363858126,1748903441484,-440.0,0.00017534,2]
[363858127,1748903441494,-440.0,0.00017534,2]
[363858128,1748903441504,-440.0,0.00017534,2]
[363858129,1748903441514,-458.18,0.00017534,2]
[363858130,1748903441523,-741.31,0.00017534,2]
[363858131,1748903441532,-484.61,0.00017534,2]
[363858132,1748903441543,-440.0,0.00017534,2]
[363858133,1748903441553,-440.0,0.00017534,2]
[363858134,1748903441562,-440.0,0.00017534,2]
[363858135,1748903441574,-440.0,0.00017534,2]
[363858136,1748903441584,-440.0,0.00017534,2]
[363858137,1748903441593,-440.0,0.00017534,2]
[363858138,1748903441604,-440.0,0.00017534,2]
[363858139,1748903441613,-440.0,0.00017534,2]
[363858140,1748903441623,-440.0,0.00017534,2]
[363858141,1748903441632,-442.00275833,0.00017624,2]
[363858142,1748903441642,-503.73758269,0.00017672,2]
[363858143,1748903441652,-440.0,0.00017808,2]
[363858144,1748903441661,-440.0,0.00017808,2]
[363858145,1748903441671,-440.0,0.00017808,2]
[363858146,1748903441680,-225.45060574,0.00017808,2]
[363858148,1748903441690,-458.18,0.00017808,2]
[363858149,1748903441700,-741.31,0.00017808,2]
[363858150,1748903441709,-484.61,0.00017808,2]
[363858152,1748903441719,-440.0,0.00017808,2]
[363858153,1748903441728,-440.0,0.00017808,2]
[363858155,1748903441737,-440.0,0.00017808,2]
[363858156,1748903441747,-440.0,0.00017808,2]
[363858157,1748903441757,-440.0,0.00017808,2]
[363858159,1748903441766,-396.62,0.00017808,2]
[363858161,1748903441776,-440.0,0.00017808,2]
[363858163,1748903441785,-440.0,0.00017808,2]
[363858165,1748903441794,-440.0,0.00017808,2]
[363858167,1748903441803,-442.00275833,0.00017866,2]
[363858169,1748903441816,-330301.46352267,0.000179,2]
[363858194,1748903442050,-2111.43714956,0.000179,2]
[363858321,1748903446676,-440.0,0.00016438,2]
[363858323,1748903446686,-440.0,0.00016438,2]
[363858325,1748903446695,-440.0,0.00016438,2]
[363858327,1748903446708,-440.0,0.00016438,2]
[363858329,1748903446717,-430.0,0.00016438,2]
[363858331,1748903446726,-440.0,0.00016712,2]
[363858333,1748903446736,-410.0,0.00016712,2]
[363858335,1748903446745,-440.0,0.00016712,2]
[363858337,1748903446754,-546.79,0.00016712,2]
[363858339,1748903446763,-440.0,0.00016986,2]
[363858340,1748903446773,-440.0,0.00016986,2]
[363858342,1748903446783,-300.0,0.00017259,2]
[363858344,1748903446792,-440.0,0.0001726,2]
[363858346,1748903446801,-440.0,0.0001726,2]
[363858347,1748903446811,-440.0,0.00017534,2]
[363858348,1748903446821,-440.0,0.00017534,2]
[363858349,1748903446831,-440.0,0.00017808,2]
[363858350,1748903446840,-440.0,0.00017808,2]
[363858351,1748903446850,-17865.36456686,0.000179,2]
[363858352,1748903446882,500.0,0.000228,120]
[363858353,1748903447519,500.0,0.000228,120]
[363858354,1748903448294,500.0,0.000228,120]
[363858355,1748903449079,500.0,0.000228,120]
[363858356,1748903449854,500.0,0.000228,120]
[363858357,1748903450633,500.0,0.000228,120]
[363858358,1748903451413,500.0,0.000228,120]
[363858359,1748903452238,500.0,0.000228,120]
[363858360,1748903453022,500.0,0.000228,120]
[363858361,1748903454031,500.0,0.000228,120]
[363858362,1748903454805,500.0,0.000228,120]
[363858363,1748903455580,500.0,0.000228,120]
[363858364,1748903456355,500.0,0.000228,120]
[363858365,1748903457120,500.0,0.000228,120]
[363858366,1748903457893,637.8,0.000228,120]
[363858367,1748903513616,164.31465425,0.00023944,120]
[363858370,1748903798411,171.3495844,0.00015438,2]
[363858372,1748903934421,-177.50414406,0.00015605,2]
[363858373,1748903937617,-163.14407918,0.00015605,2]
[363858374,1748903939391,-305.7532853,0.00015605,2]
[363858375,1748903941650,-328.44759499,0.00015605,2]
[363858376,1748903944853,-225.77311476,0.00015561,2]
[363858377,1748903947027,-162.89844754,0.00015561,2]
[363858378,1748903950738,-277.936368,0.00015561,2]
[363858380,1748904012216,1444.76217786,0.0001552,2]
[363858384,1748904270074,197.906695,0.00015431,2]
[363858385,1748904322644,315.785108,0.00013699,2]
[363861013,1748904632606,-1753.0681411,0.00015561,2]
[363861014,1748904632756,-4846.51004867,0.00015605,2]
[363861015,1748904632768,-232.0,0.00016337,2]
[363861016,1748904632777,-427.59455851,0.00016338,2]
[363861017,1748904632787,-436.34001145,0.00016338,2]
[363861018,1748904632797,-188.79891353,0.00016338,2]
[363861019,1748904632807,-300.0,0.00016397,2]
[363861020,1748904632817,-300.0,0.00016397,2]
[363861021,1748904632827,-187.0,0.00016397,2]
[363861022,1748904632836,-419.71502031,0.00016398,2]
[363861023,1748904632846,-300.0,0.00016431,2]
[363861024,1748904632856,-604.28351266,0.00016432,2]
[363861025,1748904632865,-160.0,0.00016434,2]
[363861026,1748904632875,-500.0,0.00016437,2]
[363861027,1748904632884,-500.0,0.00016437,2]
[363861028,1748904632893,-500.0,0.00016437,2]
[363861029,1748904632903,-284.32700573,0.00016437,2]
[363861030,1748904632913,-500.0,0.00016437,2]
[363861031,1748904632922,-500.0,0.00016437,2]
[363861032,1748904632932,-500.0,0.00016437,2]
[363861033,1748904632941,-500.0,0.00016437,2]
[363861034,1748904632950,-500.0,0.00016437,2]
[363861035,1748904632960,-500.0,0.00016437,2]
[363861036,1748904632969,-500.0,0.00016437,2]
[363861037,1748904632978,-500.0,0.00016437,2]
[363861038,1748904632987,-500.0,0.00016437,2]
[363861039,1748904632996,-500.0,0.00016437,2]
[363861040,1748904633006,-500.0,0.00016437,2]
[363861041,1748904633015,-500.0,0.00016437,2]
[363861042,1748904633025,-500.0,0.00016437,2]
[363861043,1748904633034,-500.0,0.00016437,2]
[363861044,1748904633044,-500.0,0.00016437,2]
[363861045,1748904633054,-500.0,0.00016437,2]
[363861046,1748904633064,-500.0,0.00016437,2]
[363861047,1748904633074,-500.0,0.00016437,2]
[363861048,1748904633084,-500.0,0.00016437,2]
[363861049,1748904633094,-500.0,0.00016437,2]
[363861050,1748904633103,-500.0,0.00016437,2]
[363861051,1748904633112,-500.0,0.00016437,2]
[363861052,1748904633122,-500.0,0.00016437,2]
[363861053,1748904633131,-500.0,0.00016437,2]
[363861054,1748904633140,-500.0,0.00016437,2]
[363861055,1748904633151,-500.0,0.00016437,2]
[363861056,1748904633161,-500.0,0.00016437,2]
[363861057,1748904633171,-308.62818893,0.00016437,2]
[363861058,1748904633181,-500.0,0.00016437,2]
[363861059,1748904633191,-500.0,0.00016437,2]
[363861060,1748904633201,-500.0,0.00016437,2]
[363861061,1748904633211,-500.0,0.00016437,2]
[363861062,1748904633220,-500.0,0.00016437,2]
[363861063,1748904633229,-500.0,0.00016437,2]
[363861064,1748904633238,-650.0,0.00016437,2]
[363861065,1748904633247,-160.0,0.00016437,2]
[363861066,1748904633257,-440.0,0.00016438,2]
[363861067,1748904633266,-440.0,0.00016438,2]
[363861068,1748904633276,-430.68489453,0.00016438,2]
[363861069,1748904633285,-575.73856884,0.00016438,2]
[363861070,1748904633295,-430.0,0.00016438,2]
[363861071,1748904633305,-430.0,0.00016438,2]
[363861072,1748904633314,-365.47869035,0.00016438,2]
[363861073,1748904633324,-440.0,0.00016438,2]
[363861074,1748904633333,-330.60566109,0.00016438,2]
[363861075,1748904633343,-440.0,0.00016438,2]
[363861076,1748904633352,-440.0,0.00016438,2]
[363861077,1748904633361,-430.0,0.00016438,2]
[363861078,1748904633371,-440.0,0.00016438,2]
[363861079,1748904633380,-440.0,0.00016438,2]
[363861080,1748904633389,-505.62065684,0.00016438,2]
[363861081,1748904633399,-440.0,0.00016438,2]
[363861082,1748904633408,-440.0,0.00016438,2]
[363861083,1748904633417,-440.0,0.00016438,2]
[363861084,1748904633426,-440.0,0.00016438,2]
[363861085,1748904633435,-172.30398629,0.00016438,2]
[363861086,1748904633444,-430.0,0.00016438,2]
[363861087,1748904633454,-440.0,0.00016438,2]
[363861088,1748904633463,-440.0,0.00016438,2]
[363861089,1748904633473,-440.0,0.00016438,2]
[363861090,1748904633482,-430.0,0.00016438,2]
[363861091,1748904633491,-430.0,0.00016438,2]
[363861092,1748904633501,-440.0,0.00016438,2]
[363861093,1748904633511,-525.09977558,0.00016438,2]
[363861094,1748904633521,-440.0,0.00016438,2]
[363861095,1748904633532,-442.71887663,0.00016438,2]
[363861096,1748904633541,-400.0,0.00016438,2]
[363861097,1748904633552,-440.0,0.00016438,2]
[363861098,1748904633562,-440.0,0.00016438,2]
[363861099,1748904633572,-370.53948181,0.00016438,2]
[363861100,1748904633582,-374.19538542,0.00016438,2]
[363861101,1748904633593,-440.0,0.00016438,2]
[363861102,1748904633605,-440.0,0.00016438,2]
[363861103,1748904633615,-440.0,0.00016438,2]
[363861104,1748904633626,-440.0,0.00016438,2]
[363861105,1748904633636,-440.0,0.00016438,2]
[363861106,1748904633646,-440.0,0.00016438,2]
[363861107,1748904633656,-450.0,0.00016438,2]
[363861108,1748904633666,-430.0,0.00016438,2]
[363861109,1748904633677,-440.0,0.00016438,2]
[363861110,1748904633687,-440.0,0.00016438,2]
[363861111,1748904633696,-440.0,0.00016438,2]
[363861112,1748904633707,-440.0,0.00016438,2]
[363861113,1748904633718,-440.0,0.00016438,2]
[363861114,1748904633730,-440.0,0.00016438,2]
[363861115,1748904633739,-440.0,0.00016438,2]
[363861116,1748904633750,-440.0,0.00016438,2]
[363861117,1748904633760,-440.0,0.00016438,2]
[363861118,1748904633771,-440.0,0.00016438,2]
[363861119,1748904633781,-430.0,0.00016438,2]
[363861120,1748904633791,-440.0,0.00016438,2]
[363861121,1748904633802,-440.0,0.00016438,2]
[363861122,1748904633812,-440.0,0.00016438,2]
[363861123,1748904633821,-440.0,0.00016438,2]
[363861124,1748904633831,-440.0,0.00016438,2]
[363861125,1748904633840,-430.0,0.00016438,2]
[363861126,1748904633850,-440.0,0.00016438,2]
[363861127,1748904633860,-440.0,0.00016438,2]
[363861128,1748904633870,-440.0,0.00016438,2]
[363861129,1748904633880,-440.0,0.00016438,2]
[363861130,1748904633889,-204.69692129,0.00016438,2]
[363861131,1748904633898,-430.0,0.00016438,2]
[363861132,1748904633907,-440.0,0.00016438,2]
[363861133,1748904633917,-430.0,0.00016438,2]